lending/lending_fUSD_20250122
["ID","MTS","AMOUNT","RATE_DAILY","PERIOD"]
[350003714,1737561051303,-196.425817,0.000214,2]
[350003715,1737561051313,-196.425817,0.000214,2]
[350003716,1737561051323,-196.425817,0.000214,2]
[350003717,1737561051333,-196.425817,0.000214,2]
[350003718,1737561051343,-196.425817,0.000214,2]
[350003719,1737561051352,-196.425817,0.000214,2]
[350003720,1737561051362,-196.425817,0.000214,2]
[350003721,1737561051371,-196.425817,0.000214,2]
[350003722,1737561051380,-151.0,0.000214,2]
[350003723,1737561051390,-274.760227,0.000214,2]
[350003724,1737561051400,-274.760227,0.000214,2]
[350003725,1737561051409,-274.760227,0.000214,2]
[350003726,1737561051419,-274.760227,0.000214,2]
[350003727,1737561051428,-274.760227,0.000214,2]
[350003728,1737561051438,-274.760227,0.000214,2]
[350003729,1737561051447,-274.760227,0.000214,2]
[350003730,1737561051457,-274.760227,0.000214,2]
[350003731,1737561051468,-274.760227,0.000214,2]
[350003732,1737561051478,-151.0,0.000214,2]
[350003733,1737561051487,-274.760227,0.000214,2]
[350003734,1737561051497,-274.760227,0.000214,2]
[350003735,1737561051506,-274.760227,0.000214,2]
[350003736,1737561051515,-151.0,0.000214,2]
[350003737,1737561051525,-151.0,0.000214,2]
[350003738,1737561051534,-151.0,0.000214,2]
[350003739,1737561051543,-151.0,0.000214,2]
[350003740,1737561051553,-151.0,0.000214,2]
[350003741,1737561051562,-151.0,0.000214,2]
[350003742,1737561051572,-151.0,0.000214,2]
[350003743,1737561051581,-151.0,0.000214,2]
[350003744,1737561051591,-150.0,0.000214,2]
[350003745,1737561051601,-333.110584,0.000214,2]
[350003746,1737561051610,-333.110584,0.000214,2]
[350003747,1737561051620,-333.110584,0.000214,2]
[350003748,1737561051630,-333.110584,0.000214,2]
[350003749,1737561051639,-333.110584,0.000214,2]
[350003750,1737561051649,-333.110584,0.000214,2]
[350003751,1737561051658,-151.0,0.000214,2]
[350003752,1737561051668,-151.0,0.000214,2]
[350003753,1737561051677,-333.110584,0.000214,2]
[350003754,1737561051686,-151.0,0.000214,2]
[350003755,1737561051695,-333.110584,0.000214,2]
[350003756,1737561051705,-151.0,0.000214,2]
[350003757,1737561051716,-333.110584,0.000214,2]
[350003758,1737561051726,-195.981711,0.000214,2]
[350003759,1737561051736,-333.110584,0.000214,2]
[350003760,1737561051745,-333.110584,0.000214,2]
[350003761,1737561051754,-333.110584,0.000214,2]
[350003762,1737561051764,-151.0,0.000214,2]
[350003763,1737561051773,-151.0,0.000214,2]
[350003764,1737561051782,-151.0,0.000214,2]
[350003765,1737561051791,-151.0,0.000214,2]
[350003766,1737561051801,-205.712446,0.000214,2]
[350003767,1737561051810,-151.0,0.000214,2]
[350003768,1737561051819,-151.0,0.000214,2]
[350003769,1737561051829,-151.0,0.000214,2]
[350003770,1737561051838,-151.0,0.000214,2]
[350003771,1737561051848,-151.0,0.000214,2]
[350003772,1737561051859,-151.0,0.000214,2]
[350003773,1737561051869,-151.0,0.000214,2]
[350003774,1737561051878,-151.0,0.000214,2]
[350003775,1737561051887,-151.0,0.000214,2]
[350003776,1737561051897,-151.0,0.000214,2]
[350003777,1737561051906,-151.0,0.000214,2]
[350003778,1737561051915,-151.0,0.000214,2]
[350003779,1737561051924,-151.0,0.000214,2]
[350003780,1737561051934,-151.0,0.000214,2]
[350003781,1737561051944,-297.458067,0.000214,2]
[350003782,1737561051954,-151.0,0.000214,2]
[350003783,1737561051965,-151.0,0.000214,2]
[350003784,1737561051974,-151.0,0.000214,2]
[350003785,1737561051983,-151.0,0.000214,2]
[350003786,1737561051992,-151.0,0.000214,2]
[350003787,1737561052001,-151.0,0.000214,2]
[350003788,1737561052010,-151.0,0.000214,2]
[350003789,1737561052019,-151.0,0.000214,2]
[350003790,1737561052028,-151.0,0.000214,2]
[350003791,1737561052039,-151.0,0.000214,2]
[350003792,1737561052054,-151.0,0.000214,2]
[350003793,1737561052067,-151.0,0.000214,2]
[350003794,1737561052077,-366.0,0.000214,2]
[350003795,1737561052086,-184.98744,0.000214,2]
[350003796,1737561052095,-184.98744,0.000214,2]
[350003797,1737561052104,-184.98744,0.000214,2]
[350003798,1737561052113,-184.98744,0.000214,2]
[350003799,1737561052122,-184.98744,0.000214,2]
[350003800,1737561052131,-184.98744,0.000214,2]
[350003801,1737561052140,-184.98744,0.000214,2]
[350003802,1737561052149,-184.98744,0.000214,2]
[350003803,1737561052159,-151.0,0.000214,2]
[350003804,1737561052168,-184.98744,0.000214,2]
[350003805,1737561052177,-151.0,0.000214,2]
[350003806,1737561052187,-184.98744,0.000214,2]
[350003807,1737561052195,-151.0,0.000214,2]
[350003808,1737561052205,-184.98744,0.000214,2]
[350003809,1737561052216,-151.0,0.000214,2]
[350003810,1737561052225,-184.98744,0.000214,2]
[350003811,1737561052235,-151.0,0.000214,2]
[350003812,1737561052244,-151.0,0.000214,2]
[350003813,1737561052253,-232.563728,0.000214,2]
[350003814,1737561052263,-745.0,0.000214,2]
[350003815,1737561052272,-260.39498155,0.000214,2]
[350003816,1737561052281,-151.0,0.000214,2]
[350003817,1737561052290,-151.0,0.000214,2]
[350003818,1737561052299,-500.0,0.000214,2]
[350003819,1737561052308,-151.0,0.000214,2]
[350003820,1737561052318,-151.0,0.000214,2]
[350003821,1737561052327,-210.839671,0.000214,2]
[350003822,1737561052337,-151.0,0.000214,2]
[350003823,1737561052346,-151.0,0.000214,2]
[350003824,1737561052355,-153.522699,0.000214,2]
[350003825,1737561052364,-500.0,0.000214,2]
[350003826,1737561052373,-150.0,0.000214,2]
[350003827,1737561052383,-969.0,0.000214,2]
[350003828,1737561052392,-151.0,0.000214,2]
[350003829,1737561052401,-151.0,0.000214,2]
[350003830,1737561052410,-151.0,0.000214,2]
[350003831,1737561052419,-151.0,0.000214,2]
[350003832,1737561052428,-151.0,0.000214,2]
[350003833,1737561052437,-159.421722,0.000214,2]
[350003834,1737561052446,-151.0,0.000214,2]
[350003835,1737561052457,-151.0,0.000214,2]
[350003836,1737561052468,-196.244588,0.000214,2]
[350003837,1737561052477,-169.069636,0.000214,2]
[350003838,1737561052487,-169.069636,0.000214,2]
[350003839,1737561052496,-169.069636,0.000214,2]
[350003840,1737561052506,-169.069636,0.000214,2]
[350003841,1737561052515,-169.069636,0.000214,2]
[350003842,1737561052525,-169.069636,0.000214,2]
[350003843,1737561052534,-169.069636,0.000214,2]
[350003844,1737561052543,-169.069636,0.000214,2]
[350003845,1737561052553,-169.069636,0.000214,2]
[350003846,1737561052562,-169.069636,0.000214,2]
[350003847,1737561052571,-169.069636,0.000214,2]
[350003848,1737561052580,-169.069636,0.000214,2]
[350003849,1737561052590,-206.07062006,0.000214,2]
[350003850,1737561052599,-151.0,0.000214,2]
[350003851,1737561052609,-151.0,0.000214,2]
[350003852,1737561052618,-151.0,0.000214,2]
[350003853,1737561052629,-151.0,0.000214,2]
[350003854,1737561052638,-151.0,0.000214,2]
[350003855,1737561052647,-151.0,0.000214,2]
[350003856,1737561052656,-151.0,0.000214,2]
[350003857,1737561052666,-151.0,0.000214,2]
[350003858,1737561052675,-220.259016,0.000214,2]
[350003859,1737561052684,-151.0,0.000214,2]
[350003860,1737561052693,-151.0,0.000214,2]
[350003861,1737561052703,-151.0,0.000214,2]
[350003862,1737561052712,-7316.193718,0.000214,2]
[350003863,1737561052721,-7316.193718,0.000214,2]
[350003864,1737561052730,-7316.193718,0.000214,2]
[350003865,1737561052739,-7316.193718,0.000214,2]
[350003866,1737561052749,-151.0,0.000214,2]
[350003867,1737561052758,-7316.193718,0.000214,2]
[350003868,1737561052767,-151.0,0.000214,2]
[350003869,1737561052776,-7316.193718,0.000214,2]
[350003870,1737561052786,-295.187135,0.000214,2]
[350003871,1737561052795,-7316.193718,0.000214,2]
[350003872,1737561052804,-7316.193718,0.000214,2]
[350003873,1737561052948,-7316.193718,0.000214,2]
[350003874,1737561052958,-7316.193718,0.000214,2]
[350003875,1737561052969,-7316.193718,0.000214,2]
[350003876,1737561052978,-7316.193718,0.000214,2]
[350003877,1737561052987,-151.0,0.000214,2]
[350003878,1737561052997,-151.0,0.000214,2]
[350003879,1737561053006,-151.0,0.000214,2]
[350003880,1737561053016,-151.0,0.000214,2]
[350003881,1737561053025,-151.0,0.000214,2]
[350003882,1737561053035,-150.0,0.000214,2]
[350003883,1737561053044,-151.0,0.000214,2]
[350003884,1737561053053,-151.0,0.000214,2]
[350003885,1737561053063,-151.0,0.000214,2]
[350003886,1737561053072,-151.0,0.000214,2]
[350003887,1737561053082,-151.0,0.000214,2]
[350003888,1737561053092,-151.0,0.000214,2]
[350003889,1737561053101,-540.626308,0.000214,2]
[350003890,1737561053112,-540.626308,0.000214,2]
[350003891,1737561053123,-540.626308,0.000214,2]
[350003892,1737561053134,-540.626308,0.000214,2]
[350003893,1737561053143,-540.626308,0.000214,2]
[350003894,1737561053155,-540.626308,0.000214,2]
[350003895,1737561053164,-540.626308,0.000214,2]
[350003896,1737561053173,-540.626308,0.000214,2]
[350003897,1737561053183,-540.626308,0.000214,2]
[350003898,1737561053192,-540.626308,0.000214,2]
[350003899,1737561053201,-540.626308,0.000214,2]
[350003900,1737561053212,-540.626308,0.000214,2]
[350003901,1737561053221,-424.33663619,0.00021407,4]
[350003902,1737561053230,-217.07278203,0.00021407,4]
[350003903,1737561053240,-150.0,0.0002141,4]
[350003904,1737561053249,-534.61,0.00021411,7]
[350003905,1737561053259,-534.61,0.00021411,7]
[350003906,1737561053269,-534.61,0.00021411,7]
[350003907,1737561053278,-534.61,0.00021411,7]
[350003908,1737561053287,-500.0,0.00021413,2]
[350003909,1737561053297,-500.0,0.00021413,2]
[350003910,1737561053307,-500.0,0.00021413,2]
[350003911,1737561053316,-500.0,0.00021413,2]
[350003912,1737561053326,-500.0,0.00021413,2]
[350003913,1737561053335,-339.17941718,0.00021413,2]
[350003914,1737561053344,-500.0,0.00021413,2]
[350003915,1737561053354,-500.0,0.00021413,2]
[350003916,1737561053363,-612.37732378,0.00021413,2]
[350003917,1737561053372,-500.0,0.00021413,2]
[350003918,1737561053382,-500.0,0.00021413,2]
[350003919,1737561053392,-500.0,0.00021413,2]
[350003920,1737561053401,-583.68,0.00021413,2]
[350003921,1737561053410,-1913.12,0.00021413,2]
[350003922,1737561053420,-777.39,0.00021413,2]
[350003923,1737561053429,-500.0,0.00021413,2]
[350003924,1737561053439,-734.65,0.00021413,2]
[350003925,1737561053450,-1921.41,0.00021413,2]
[350003926,1737561053459,-500.0,0.00021413,2]
[350003927,1737561053470,-500.0,0.00021413,2]
[350003928,1737561053479,-500.0,0.00021413,2]
[350003929,1737561053489,-1387.92,0.00021413,2]
[350003930,1737561053498,-1362.93,0.00021413,2]
[350003931,1737561053508,-1577.83,0.00021413,2]
[350003932,1737561053517,-1021.71,0.00021413,2]
[350003933,1737561053527,-500.0,0.00021413,2]
[350003934,1737561053536,-2067.0,0.00021413,2]
[350003935,1737561053545,-1157.29,0.00021413,2]
[350003936,1737561053554,-1822.39,0.00021413,2]
[350003937,1737561053564,-1240.96,0.00021413,2]
[350003938,1737561053573,-500.0,0.00021413,2]
[350003939,1737561053583,-1071.01,0.00021413,2]
[350003940,1737561053592,-500.0,0.00021413,2]
[350003941,1737561053601,-659.8,0.00021413,2]
[350003942,1737561053611,-500.0,0.00021413,2]
[350003943,1737561053620,-3026.04,0.00021413,2]
[350003944,1737561053630,-500.0,0.00021413,2]
[350003945,1737561053639,-500.0,0.00021413,2]
[350003946,1737561053648,-173.55837637,0.00021413,2]
[350003947,1737561053658,-724.78,0.00021413,2]
[350003948,1737561053667,-1386.84,0.00021413,2]
[350003949,1737561053676,-500.0,0.00021413,2]
[350003950,1737561053686,-500.0,0.00021413,2]
[350003951,1737561053695,-424.33663619,0.00021417,4]
[350003952,1737561053705,-217.07278203,0.00021417,4]
[350003953,1737561053716,-249.0,0.0002142,2]
[350003954,1737561053726,-150.0,0.00021423,4]
[350003955,1737561053736,-424.33663619,0.00021427,4]
[350003956,1737561053745,-217.07278203,0.00021427,4]
[350003957,1737561053755,-150.0,0.00021427,2]
[350003958,1737561053764,-500.0,0.00021427,2]
[350003959,1737561053774,-150.0,0.00021427,2]
[350003960,1737561053785,-500.0,0.00021427,2]
[350003961,1737561053795,-502.60028607,0.00021427,2]
[350003962,1737561053804,-969.0,0.00021427,2]
[350003963,1737561053814,-150.0,0.00021431,4]
[350003964,1737561053823,-150.0,0.00021436,4]
[350003965,1737561053835,-424.33663619,0.00021437,4]
[350003966,1737561053845,-217.07278203,0.00021437,4]
[350003967,1737561053857,-206.07062006,0.00021438,2]
[350003968,1737561053866,-424.33663619,0.00021447,4]
[350003969,1737561053876,-217.07278203,0.00021447,4]
[350003970,1737561053886,-150.0,0.00021449,4]
[350003971,1737561053895,-389.61253116,0.0002145,2]
[350003972,1737561053904,-150.0,0.00021455,2]
[350003973,1737561053914,-911.73113793,0.00021455,2]
[350003974,1737561053924,-202.725072,0.00021455,2]
[350003975,1737561053934,-500.0,0.00021455,2]
[350003976,1737561053944,-969.0,0.00021455,2]
[350003977,1737561053955,-424.33663619,0.00021457,4]
[350003978,1737561053966,-217.07278203,0.00021457,4]
[350003979,1737561053975,-500.0,0.0002146,2]
[350003980,1737561053984,-716.07,0.0002146,2]
[350003981,1737561053994,-500.0,0.0002146,2]
[350003982,1737561054003,-1901.12,0.00021461,2]
[350003983,1737561054012,-1284.9,0.00021461,2]
[350003984,1737561054022,-2189.36,0.00021461,2]
[350003985,1737561054032,-1089.21,0.00021461,2]
[350003986,1737561054041,-1048.151989,0.00021461,2]
[350003987,1737561054050,-850.53,0.00021461,2]
[350003988,1737561054059,-584.33,0.00021461,2]
[350003989,1737561054069,-500.0,0.00021461,2]
[350003990,1737561054078,-950.99,0.00021461,2]
[350003991,1737561054087,-500.0,0.00021461,2]
[350003992,1737561054097,-1303.74,0.00021461,2]
[350003993,1737561054106,-710.76085,0.00021461,2]
[350003994,1737561054115,-1465.35,0.00021461,2]
[350003995,1737561054127,-1858.92,0.00021461,2]
[350003996,1737561054135,-1022.99,0.00021461,2]
[350003997,1737561054145,-1069.34,0.00021461,2]
[350003998,1737561054154,-3037.7,0.00021461,2]
[350003999,1737561054163,-1159.41,0.00021461,2]
[350004000,1737561054172,-730.51,0.00021461,2]
[350004001,1737561054183,-1042.13,0.00021461,2]
[350004002,1737561054193,-2346.84,0.00021461,2]
[350004003,1737561054202,-1599.28,0.00021461,2]
[350004004,1737561054213,-583.87,0.00021461,2]
[350004005,1737561054223,-2614.66,0.00021461,2]
[350004006,1737561054232,-1403.3,0.00021461,2]
[350004007,1737561054241,-3164.3,0.00021461,2]
[350004008,1737561054250,-1386.72,0.00021461,2]
[350004009,1737561054259,-1193.04,0.00021461,2]
[350004010,1737561054269,-3400.47,0.00021461,2]
[350004011,1737561054278,-200.0,0.00021461,2]
[350004012,1737561054287,-150.0,0.00021461,4]
[350004013,1737561054297,-150.0,0.00021465,4]
[350004014,1737561054306,-424.33663619,0.00021467,4]
[350004015,1737561054315,-217.07278203,0.00021467,4]
[350004016,1737561054324,-150.0,0.00021474,4]
[350004017,1737561054334,-206.07062006,0.00021477,2]
[350004018,1737561054343,-424.33663619,0.00021477,4]
[350004019,1737561054352,-217.07278203,0.00021477,4]
[350004020,1737561054362,-202.86710404,0.00021482,2]
[350004021,1737561054371,-692.79872351,0.00021482,2]
[350004022,1737561054380,-969.0,0.00021482,2]
[350004023,1737561054389,-424.33663619,0.00021487,4]
[350004024,1737561054399,-150.0,0.00021487,4]
[350004025,1737561054408,-217.07278203,0.00021487,4]
[350004026,1737561054417,-424.33663619,0.00021497,4]
[350004027,1737561054426,-217.07278203,0.00021497,4]
[350004028,1737561054435,-150.0,0.00021499,4]
[350004029,1737561054444,-150.0,0.000215,4]
[350004030,1737561054453,-2565.81367857,0.000215,2]
[350004031,1737561054463,-2110.0,0.000215,2]
[350004032,1737561054472,-151.491,0.00021503,2]
[350004033,1737561054481,-2019.0,0.00021503,2]
[350004034,1737561054490,-1270.0,0.00021503,2]
[350004035,1737561054499,-636.0,0.00021503,2]
[350004036,1737561054508,-620.417,0.00021503,2]
[350004037,1737561054517,-212.847,0.00021503,2]
[350004038,1737561054527,-262.705,0.00021503,2]
[350004039,1737561054536,-1864.0,0.00021503,2]
[350004040,1737561054546,-1261.0,0.00021503,2]
[350004041,1737561054555,-820.0,0.00021503,2]
[350004042,1737561054564,-908.0,0.00021503,2]
[350004043,1737561054574,-2948.0,0.00021503,2]
[350004044,1737561054583,-538.0,0.00021503,2]
[350004045,1737561054592,-150.0,0.00021503,2]
[350004046,1737561054601,-3984.0,0.00021503,2]
[350004047,1737561054610,-3903.0,0.00021503,2]
[350004048,1737561054620,-1176.0,0.00021503,2]
[350004049,1737561054629,-157.159,0.00021503,2]
[350004050,1737561054638,-250.0,0.00021503,2]
[350004051,1737561054648,-168.0,0.00021503,2]
[350004052,1737561054657,-179.03,0.00021503,2]
[350004053,1737561054666,-424.33663619,0.00021507,4]
[350004054,1737561054675,-217.07278203,0.00021507,4]
[350004055,1737561054684,-969.0,0.0002151,2]
[350004056,1737561054694,-500.0,0.0002151,2]
[350004057,1737561054703,-500.0,0.0002151,2]
[350004058,1737561054713,-814.27,0.0002151,2]
[350004059,1737561054722,-699.56,0.0002151,2]
[350004060,1737561054731,-544.6,0.0002151,2]
[350004061,1737561054740,-938.57,0.0002151,2]
[350004062,1737561054749,-500.0,0.0002151,2]
[350004063,1737561054759,-500.0,0.0002151,2]
[350004064,1737561054768,-500.0,0.0002151,2]
[350004065,1737561054777,-500.0,0.0002151,2]
[350004066,1737561054787,-701.97,0.0002151,2]
[350004067,1737561054796,-500.0,0.0002151,2]
[350004068,1737561054805,-714.1,0.0002151,2]
[350004069,1737561054815,-933.3,0.0002151,2]
[350004070,1737561054824,-797.67,0.0002151,2]
[350004071,1737561054837,-500.0,0.0002151,2]
[350004072,1737561054847,-500.0,0.0002151,2]
[350004073,1737561054856,-500.0,0.0002151,2]
[350004074,1737561054866,-500.0,0.0002151,2]
[350004075,1737561054875,-500.0,0.0002151,2]
[350004076,1737561054884,-315.68402906,0.0002151,2]
[350004077,1737561054894,-541.13978237,0.0002151,2]
[350004078,1737561054903,-500.0,0.0002151,2]
[350004079,1737561054913,-500.0,0.0002151,2]
[350004080,1737561054923,-500.0,0.0002151,2]
[350004081,1737561054932,-571.76,0.0002151,2]
[350004082,1737561054942,-500.0,0.0002151,2]
[350004083,1737561054951,-868.43,0.0002151,2]
[350004084,1737561054963,-500.0,0.0002151,2]
[350004085,1737561054974,-1041.14,0.0002151,2]
[350004086,1737561054983,-500.0,0.0002151,2]
[350004087,1737561054992,-1007.77,0.0002151,2]
[350004088,1737561055002,-500.0,0.0002151,2]
[350004089,1737561055012,-500.0,0.0002151,2]
[350004090,1737561055022,-814.19,0.0002151,2]
[350004091,1737561055031,-500.0,0.0002151,2]
[350004092,1737561055040,-500.0,0.0002151,2]
[350004093,1737561055050,-1169.53,0.0002151,2]
[350004094,1737561055060,-500.0,0.0002151,2]
[350004095,1737561055070,-503.91,0.0002151,2]
[350004096,1737561055079,-500.0,0.0002151,2]
[350004097,1737561055088,-500.0,0.0002151,2]
[350004098,1737561055098,-500.0,0.0002151,2]
[350004099,1737561055107,-500.0,0.0002151,2]
[350004100,1737561055116,-500.0,0.0002151,2]
[350004101,1737561055126,-500.0,0.0002151,2]
[350004102,1737561055135,-500.0,0.0002151,2]
[350004103,1737561055144,-868.31,0.0002151,2]
[350004104,1737561055154,-936.05,0.0002151,2]
[350004105,1737561055163,-943.02,0.0002151,2]
[350004106,1737561055173,-710.57,0.0002151,2]
[350004107,1737561055183,-500.0,0.0002151,2]
[350004108,1737561055192,-740.49,0.0002151,2]
[350004109,1737561055202,-849.79,0.0002151,2]
[350004110,1737561055211,-500.0,0.0002151,2]
[350004111,1737561055222,-500.0,0.0002151,2]
[350004112,1737561055231,-729.86,0.0002151,2]
[350004113,1737561055241,-1325.49,0.0002151,2]
[350004114,1737561055250,-500.0,0.0002151,2]
[350004115,1737561055259,-736.4,0.0002151,2]
[350004116,1737561055269,-1313.17,0.0002151,2]
[350004117,1737561055279,-756.94,0.0002151,2]
[350004118,1737561055288,-500.0,0.0002151,2]
[350004119,1737561055298,-889.45,0.0002151,2]
[350004120,1737561055307,-1671.82,0.0002151,2]
[350004121,1737561055317,-869.43,0.0002151,2]
[350004122,1737561055326,-1219.9,0.0002151,2]
[350004123,1737561055336,-1936.2,0.0002151,2]
[350004124,1737561055345,-1090.25,0.0002151,2]
[350004125,1737561055357,-2282.81,0.0002151,2]
[350004126,1737561055367,-857.24,0.0002151,2]
[350004127,1737561055376,-3260.25,0.0002151,2]
[350004128,1737561055386,-745.37,0.0002151,2]
[350004129,1737561055395,-1183.05,0.0002151,2]
[350004130,1737561055405,-500.0,0.0002151,2]
[350004131,1737561055414,-500.0,0.0002151,2]
[350004132,1737561055424,-3734.26,0.0002151,2]
[350004133,1737561055433,-1914.34,0.0002151,2]
[350004134,1737561055442,-500.0,0.0002151,2]
[350004135,1737561055452,-1244.09,0.0002151,2]
[350004136,1737561055464,-500.0,0.0002151,2]
[350004137,1737561055473,-500.0,0.0002151,2]
[350004138,1737561055483,-1115.53,0.0002151,2]
[350004139,1737561055493,-500.0,0.0002151,2]
[350004140,1737561055503,-500.0,0.0002151,2]
[350004141,1737561055513,-500.0,0.0002151,2]
[350004142,1737561055523,-567.71,0.0002151,2]
[350004143,1737561055532,-500.0,0.0002151,2]
[350004144,1737561055542,-832.91,0.0002151,2]
[350004145,1737561055551,-1500.31,0.0002151,2]
[350004146,1737561055560,-1782.64,0.0002151,2]
[350004147,1737561055570,-1058.45,0.0002151,2]
[350004148,1737561055579,-638.44,0.0002151,2]
[350004149,1737561055589,-1472.99,0.00021511,2]
[350004150,1737561055599,-500.0,0.00021511,2]
[350004151,1737561055608,-1783.97,0.00021511,2]
[350004152,1737561055618,-500.0,0.00021511,2]
[350004153,1737561055628,-1904.35,0.00021511,2]
[350004154,1737561055638,-998.26,0.00021511,2]
[350004155,1737561055647,-500.0,0.00021511,2]
[350004156,1737561055657,-500.0,0.00021511,2]
[350004157,1737561055805,-596.92,0.00021511,2]
[350004158,1737561055815,-1051.03,0.00021511,2]
[350004159,1737561055825,-926.05,0.00021511,2]
[350004160,1737561055836,-500.0,0.00021511,2]
[350004161,1737561055846,-1132.52,0.00021511,2]
[350004162,1737561055858,-1471.28,0.00021511,2]
[350004163,1737561055868,-949.56,0.00021511,2]
[350004164,1737561055878,-1416.28,0.00021511,2]
[350004165,1737561055888,-3083.91,0.00021511,2]
[350004166,1737561055898,-6269.62,0.00021511,2]
[350004167,1737561055908,-1023.62,0.00021511,2]
[350004168,1737561055918,-1023.89,0.00021511,2]
[350004169,1737561055928,-2317.93,0.00021511,2]
[350004170,1737561055938,-500.0,0.00021511,2]
[350004171,1737561055948,-1042.11,0.00021511,2]
[350004172,1737561055958,-1189.2,0.00021511,2]
[350004173,1737561055969,-1322.9,0.00021511,2]
[350004174,1737561055978,-500.0,0.00021511,2]
[350004175,1737561055988,-1000.0,0.00021511,2]
[350004176,1737561055998,-1209.14,0.00021511,2]
[350004177,1737561056007,-500.0,0.00021511,2]
[350004178,1737561056017,-2059.96,0.00021511,2]
[350004179,1737561056026,-497.30780419,0.00021512,2]
[350004180,1737561056036,-500.0,0.00021512,2]
[350004181,1737561056045,-500.0,0.00021512,2]
[350004182,1737561056054,-500.0,0.00021512,2]
[350004183,1737561056062,-500.0,0.00021512,2]
[350004184,1737561056072,-242.63219863,0.00021512,2]
[350004185,1737561056081,-265.10301353,0.00021512,2]
[350004186,1737561056090,-500.0,0.00021512,2]
[350004187,1737561056099,-500.0,0.00021512,2]
[350004188,1737561056109,-500.0,0.00021512,2]
[350004189,1737561056119,-500.0,0.00021512,2]
[350004190,1737561056128,-500.0,0.00021512,2]
[350004191,1737561056137,-500.0,0.00021512,2]
[350004192,1737561056146,-207.46987966,0.00021512,2]
[350004193,1737561056155,-500.0,0.00021512,2]
[350004194,1737561056165,-500.0,0.00021512,2]
[350004195,1737561056175,-500.0,0.00021512,2]
[350004196,1737561056184,-514.30030868,0.00021512,2]
[350004197,1737561056193,-500.0,0.00021512,2]
[350004198,1737561056203,-500.0,0.00021512,2]
[350004199,1737561056213,-500.0,0.00021512,2]
[350004200,1737561056222,-500.0,0.00021512,2]
[350004201,1737561056232,-571.11,0.00021512,2]
[350004202,1737561056241,-500.0,0.00021512,2]
[350004203,1737561056252,-500.0,0.00021512,2]
[350004204,1737561056261,-524.87,0.00021512,2]
[350004205,1737561056271,-500.0,0.00021512,2]
[350004206,1737561056280,-500.0,0.00021512,2]
[350004207,1737561056290,-575.83,0.00021512,2]
[350004208,1737561056300,-500.0,0.00021512,2]
[350004209,1737561056309,-500.0,0.00021512,2]
[350004210,1737561056319,-500.0,0.00021512,2]
[350004211,1737561056328,-570.68,0.00021512,2]
[350004212,1737561056338,-500.0,0.00021512,2]
[350004213,1737561056347,-500.0,0.00021512,2]